[Event "Fall IM Norm Invitational 2020"]
[Site "Charlotte"]
[Date "2020.10.02"]
[Round "4.1"]
[White "Stearman, Josiah"]
[Black "Francisco, Richard"]
[Result "1-0"]
[ECO "E15"]
[WhiteElo "2354"]
[BlackElo "2303"]
[Annotator "ChessBase"]
[PlyCount "65"]
[EventDate "2020.09.30"]
[EventType "tourn"]
[EventCountry "USA"]
[SourceTitle "playchess.com"]
[Source "ChessBase"]
[SourceQuality "1"]
[TimeControl "5400+30"]

1. d4 {[%emt 1:30:30]} Nf6 {[%emt 1:30:30]} 2. c4 {[%emt 0:00:30]} e6 {[%emt 0:00:30]} 3. Nf3 {[%emt 0:00:30]} b6 {[%emt 0:00:30]} 4. g3 {[%emt 0:00:30]} Ba6 {[%emt 0:00:30]} 5. b3 {[%emt 0:00:30]} Bb4+ {[%emt 0:00:30]} 6. Bd2 {[%emt 0:00:30]} Be7 {[%emt 0:00:30]} 7. Bg2 {[%emt 0:00:30]} c6 {[%emt 0:00:30]} 8. Bc3 {[%emt 0:00:30]} d5 {[%emt 0:00:30]} 9. Nbd2 {[%emt 0:00:30]} Nbd7 {[%emt 0:00:30]} 10. O-O {[%emt 0:00:30]} Rc8 {[%emt 0:00:30]} 11. Re1 {[%emt 0:00:30]} O-O {[%emt 0:00:30]} 12. Bb2 {[%emt 0:00:30]} c5 {[%emt 0:00:30]} 13. cxd5 {[%emt 0:00:30]} Nxd5 {[%emt 0:00:30]} 14. a3 {[%emt 0:00:30]} Qc7 {[%emt 0:00:30]} 15. Rc1 {[%emt 0:00:30]} Qb8 {[%emt 0:00:30]} 16. e4 {[%emt 0:00:30]} N5f6 {[%emt 0:00:30]} 17. d5 {[%emt 0:00:30]} exd5 {[%emt 0:00:30]} 18. exd5 {[%emt 0:00:30]} Rfe8 {[%emt 0:00:30]} 19. Ne5 {[%emt 0:00:30]} Qc7 {[%emt 0:00:30]} 20. Nc6 {[%emt 0:00:30]} Bd6 {[%emt 0:00:30]} 21. Ne4 {[%emt 0:00:30]} Nxe4 {[%emt 0:00:30]} 22. Bxe4 {[%emt 0:00:30]} g6 {[%emt 0:00:30]} 23. Qd2 {[%emt 0:00:30]} Bf8 {[%emt 0:00:30]} 24. Qc3 {[%emt 0:00:30]} f6 {[%emt 0:00:30]} 25. Bg2 {[%emt 0:00:30]} Bb5 {[%emt 0:00:30]} 26. a4 {[%emt 0:00:30]} Rxe1+ {[%emt 0:00:30]} 27. Qxe1 {[%emt 0:00:30]} Bxc6 {[%emt 0:00:30]} 28. Qe6+ {[%emt 0:00:30]} Kh8 {[%emt 0:00:30]} 29. dxc6 {[%emt 0:00:30]} Ne5 {[%emt 0:00:30]} 30. Rd1 {[%emt 0:00:30]} Rb8 {[%emt 0:00:30]} 31. Qxf6+ {[%emt 0:00:30]} Bg7 {[%emt 0:00:30]} 32. Bxe5 {[%emt 0:00:30]} Qxe5 {[%emt 0:00:30]} 33. Rd8+ {[%emt 0:00:30]} 1-0

[Event "Fall IM Norm Invitational 2020"]
[Site "Charlotte"]
[Date "2020.10.02"]
[Round "4.2"]
[White "Velikanov, Alexander"]
[Black "Vivekananthan, Anish"]
[Result "1-0"]
[ECO "C42"]
[WhiteElo "2274"]
[BlackElo "2239"]
[Annotator "ChessBase"]
[PlyCount "81"]
[EventDate "2020.09.30"]
[EventType "tourn"]
[EventCountry "USA"]
[SourceTitle "playchess.com"]
[Source "ChessBase"]
[SourceQuality "1"]
[TimeControl "5400+30"]

1. e4 {[%emt 1:30:30]} e5 {[%emt 1:30:30]} 2. Nf3 {[%emt 0:00:30]} Nf6 {[%emt 0:00:30]} 3. Nxe5 {[%emt 0:00:30]} d6 {[%emt 0:00:30]} 4. Nf3 {[%emt 0:00:30]} Nxe4 {[%emt 0:00:30]} 5. d3 {[%emt 0:00:30]} Nf6 {[%emt 0:00:30]} 6. d4 {[%emt 0:00:30]} Be7 {[%emt 0:00:30]} 7. Bd3 {[%emt 0:00:30]} Bg4 {[%emt 0:00:30]} 8. O-O {[%emt 0:00:30]} O-O {[%emt 0:00:30]} 9. Bg5 {[%emt 0:00:30]} Nd5 {[%emt 0:00:30]} 10. Bd2 {[%emt 0:00:30]} Nc6 {[%emt 0:00:30]} 11. h3 {[%emt 0:00:30]} Bh5 {[%emt 0:00:30]} 12. c4 {[%emt 0:00:30]} Nb6 {[%emt 0:00:30]} 13. Be3 {[%emt 0:00:30]} Nb4 {[%emt 0:00:30]} 14. Be2 {[%emt 0:00:30]} Bxf3 {[%emt 0:00:30]} 15. Bxf3 {[%emt 0:00:30]} Nxc4 {[%emt 0:00:30]} 16. Qb3 {[%emt 0:00:30]} d5 {[%emt 0:00:30]} 17. a3 {[%emt 0:00:30]} Nc6 {[%emt 0:00:30]} 18. Qxb7 {[%emt 0:00:30]} Qd7 {[%emt 0:00:30]} 19. Nc3 {[%emt 0:00:30]} Nb6 {[%emt 0:00:30]} 20. Nb5 {[%emt 0:00:30]} Rac8 {[%emt 0:00:30]} 21. Rac1 {[%emt 0:00:30]} Nd8 {[%emt 0:00:30]} 22. Qa6 {[%emt 0:00:30]} Ne6 {[%emt 0:00:30]} 23. a4 {[%emt 0:00:30]} Rb8 {[%emt 0:00:30]} 24. Nxa7 {[%emt 0:00:30]} Bg5 {[%emt 0:00:30]} 25. b3 {[%emt 0:00:30]} Bxe3 {[%emt 0:00:30]} 26. fxe3 {[%emt 0:00:30]} Ng5 {[%emt 0:00:30]} 27. Nc6 {[%emt 0:00:30]} Rbe8 {[%emt 0:00:30]} 28. Ne5 {[%emt 0:00:30]} Qd8 {[%emt 0:00:30]} 29. a5 {[%emt 0:00:30]} Nc8 {[%emt 0:00:30]} 30. Qb7 {[%emt 0:00:30]} c6 {[%emt 0:00:30]} 31. Nxc6 {[%emt 0:00:30]} Qd6 {[%emt 0:00:30]} 32. Ne5 {[%emt 0:00:30]} Ne7 {[%emt 0:00:30]} 33. a6 {[%emt 0:00:30]} Nf5 {[%emt 0:00:30]} 34. Bxd5 {[%emt 0:00:30]} Nxe3 {[%emt 0:00:30]} 35. Bxf7+ {[%emt 0:00:30]} Rxf7 {[%emt 0:00:30]} 36. Rxf7 {[%emt 0:00:30]} Qxd4 {[%emt 0:00:30]} 37. Rxg7+ {[%emt 0:00:30]} Kh8 {[%emt 0:00:30]} 38. Rxg5 {[%emt 0:00:30]} Nf5+ {[%emt 0:00:30]} 39. Kh1 {[%emt 0:00:30]} Qxe5 {[%emt 0:00:30]} 40. Qf3 {[%emt 0:00:30]} Qb2 {[%emt 0:00:30]} 41. Qc3+ {[%emt 0:00:30]} 1-0

[Event "Fall IM Norm Invitational 2020"]
[Site "Charlotte"]
[Date "2020.10.02"]
[Round "4.3"]
[White "Matros, Alexander"]
[Black "Adamson, Robby"]
[Result "1/2-1/2"]
[ECO "B20"]
[WhiteElo "2417"]
[BlackElo "2235"]
[Annotator "ChessBase"]
[PlyCount "84"]
[EventDate "2020.09.30"]
[EventType "tourn"]
[EventCountry "USA"]
[SourceTitle "playchess.com"]
[Source "ChessBase"]
[SourceQuality "1"]
[TimeControl "5400+30"]

1. e4 {[%emt 1:30:30]} c5 {[%emt 1:30:30]} 2. b3 {[%emt 0:00:30]} Nc6 {[%emt 0:00:30]} 3. Bb2 {[%emt 0:00:30]} Nf6 {[%emt 0:00:30]} 4. Nc3 {[%emt 0:00:30]} e6 {[%emt 0:00:30]} 5. f4 {[%emt 0:00:30]} d5 {[%emt 0:00:30]} 6. e5 {[%emt 0:00:30]} Nd7 {[%emt 0:00:30]} 7. Nf3 {[%emt 0:00:30]} a6 {[%emt 0:00:30]} 8. a4 {[%emt 0:00:30]} g6 {[%emt 0:00:30]} 9. h4 {[%emt 0:00:30]} Bg7 {[%emt 0:00:30]} 10. h5 {[%emt 0:00:30]} Qe7 {[%emt 0:00:30]} 11. Bd3 {[%emt 0:00:30]} Nb4 {[%emt 0:00:30]} 12. Qe2 {[%emt 0:00:30]} b6 {[%emt 0:00:30]} 13. Ba3 {[%emt 0:00:30]} Nxd3+ {[%emt 0:00:30]} 14. cxd3 {[%emt 0:00:30]} O-O {[%emt 0:00:30]} 15. g4 {[%emt 0:00:30]} Re8 {[%emt 0:00:30]} 16. g5 {[%emt 0:00:30]} b5 {[%emt 0:00:30]} 17. axb5 {[%emt 0:00:30]} Rb8 {[%emt 0:00:30]} 18. Qh2 {[%emt 0:00:30]} axb5 {[%emt 0:00:30]} 19. hxg6 {[%emt 0:00:30]} fxg6 {[%emt 0:00:30]} 20. Nd1 {[%emt 0:00:30]} Nf8 {[%emt 0:00:30]} 21. Nf2 {[%emt 0:00:30]} Ra8 {[%emt 0:00:30]} 22. Ke2 {[%emt 0:00:30]} b4 {[%emt 0:00:30]} 23. Bb2 {[%emt 0:00:30]} Bd7 24. Ng4 {[%emt 0:00:30]} Rec8 {[%emt 0:01:00]} 25. Nf6+ {[%emt 0:00:30]} Kf7 {[%emt 0:00:30]} 26. Qg3 {[%emt 0:00:30]} Bb5 {[%emt 0:00:30]} 27. Nxh7 {[%emt 0:00:30]} Rxa1 {[%emt 0:00:30]} 28. Bxa1 {[%emt 0:00:30]} Nxh7 {[%emt 0:00:30]} 29. Rxh7 Kg8 {[%emt 0:00:30]} 30. Rh1 {[%emt 0:01:00]} Ra8 31. Nh2 {[%emt 0:00:30]} Ra3 {[%emt 0:01:00]} 32. Rb1 {[%emt 0:00:30]} Qa7 {[%emt 0:00:30]} 33. Qh3 {[%emt 0:00:30]} Bd7 {[%emt 0:00:30]} 34. Ng4 {[%emt 0:00:30]} Rxa1 {[%emt 0:00:30]} 35. Rxa1 {[%emt 0:00:30]} Qxa1 36. Nf6+ {[%emt 0:00:30]} Bxf6 {[%emt 0:01:00]} 37. gxf6 {[%emt 0:00:30]} Qa7 {[%emt 0:00:30]} 38. f7+ {[%emt 0:00:30]} Kxf7 {[%emt 0:00:30]} 39. Qh7+ {[%emt 0:00:30]} Ke8 {[%emt 0:00:30]} 40. Qh8+ {[%emt 0:00:30]} Ke7 {[%emt 0:00:30]} 41. Qf6+ {[%emt 0:00:30]} Ke8 {[%emt 0:00:30]} 42. Qh8+ {[%emt 0:00:30]} Ke7 {[%emt 0:00:30]} 1/2-1/2

[Event "Fall IM Norm Invitational 2020"]
[Site "Charlotte"]
[Date "2020.10.02"]
[Round "4.4"]
[White "Andrianov, Nikolay"]
[Black "Li, Eric"]
[Result "1/2-1/2"]
[ECO "D11"]
[WhiteElo "1816"]
[BlackElo "2334"]
[Annotator "ChessBase"]
[PlyCount "39"]
[EventDate "2020.09.30"]
[EventType "tourn"]
[EventCountry "USA"]
[SourceTitle "playchess.com"]
[Source "ChessBase"]
[SourceQuality "1"]
[TimeControl "5400+30"]

1. Nf3 {[%emt 1:30:30]} d5 {[%emt 1:30:30]} 2. b3 {[%emt 0:00:30]} Nf6 {[%emt 0:00:30]} 3. Bb2 {[%emt 0:00:30]} Bg4 {[%emt 0:00:30]} 4. g3 {[%emt 0:00:30]} c6 {[%emt 0:00:30]} 5. Bg2 {[%emt 0:00:30]} Nbd7 {[%emt 0:00:30]} 6. O-O {[%emt 0:00:30]} e6 {[%emt 0:00:30]} 7. c4 {[%emt 0:00:30]} Bd6 {[%emt 0:00:30]} 8. Nc3 {[%emt 0:00:30]} O-O {[%emt 0:00:30]} 9. d4 {[%emt 0:00:30]} a6 {[%emt 0:00:30]} 10. Re1 {[%emt 0:00:30]} Bh5 {[%emt 0:00:30]} 11. e4 {[%emt 0:00:30]} dxe4 {[%emt 0:00:30]} 12. Nxe4 {[%emt 0:00:30]} Nxe4 {[%emt 0:00:30]} 13. Rxe4 {[%emt 0:00:30]} Nf6 {[%emt 0:00:30]} 14. Re3 {[%emt 0:00:30]} Qe7 {[%emt 0:00:30]} 15. h3 {[%emt 0:00:30]} Bxf3 {[%emt 0:00:30]} 16. Qxf3 {[%emt 0:00:30]} Ba3 {[%emt 0:00:30]} 17. Bc3 {[%emt 0:00:30]} Bb4 {[%emt 0:00:30]} 18. Bb2 {[%emt 0:00:30]} Ba3 {[%emt 0:00:30]} 19. Bc3 {[%emt 0:00:30]} Bb4 {[%emt 0:00:30]} 20. Bb2 1/2-1/2

[Event "Fall IM Norm Invitational 2020"]
[Site "Charlotte"]
[Date "2020.10.02"]
[Round "4.5"]
[White "Martin Del Campo C., Roberto"]
[Black "Krykun, Yuriy"]
[Result "0-1"]
[ECO "C65"]
[WhiteElo "2311"]
[BlackElo "2371"]
[Annotator "ChessBase"]
[PlyCount "84"]
[EventDate "2020.09.30"]
[EventType "tourn"]
[EventCountry "USA"]
[SourceTitle "playchess.com"]
[Source "ChessBase"]
[SourceQuality "1"]
[TimeControl "5400+30"]

1. e4 {[%emt 1:30:30]} e5 {[%emt 1:30:30]} 2. Nf3 {[%emt 0:00:30]} Nc6 {[%emt 0:00:30]} 3. Bb5 {[%emt 0:00:30]} Nf6 {[%emt 0:00:30]} 4. d4 {[%emt 0:00:30]} Nxd4 {[%emt 0:00:30]} 5. Nxd4 {[%emt 0:00:30]} c6 {[%emt 0:00:30]} 6. Be2 {[%emt 0:00:30]} exd4 {[%emt 0:00:30]} 7. Qxd4 {[%emt 0:00:30]} d5 {[%emt 0:00:30]} 8. exd5 {[%emt 0:00:30]} Qxd5 {[%emt 0:00:30]} 9. Qxd5 {[%emt 0:00:30]} Nxd5 {[%emt 0:00:30]} 10. a3 {[%emt 0:00:30]} Bd6 {[%emt 0:00:30]} 11. g3 {[%emt 0:00:30]} Bf5 {[%emt 0:00:30]} 12. c4 {[%emt 0:00:30]} Nb6 {[%emt 0:00:30]} 13. Nc3 {[%emt 0:00:30]} O-O-O {[%emt 0:00:30]} 14. Be3 {[%emt 0:00:30]} Be5 {[%emt 0:00:30]} 15. Rc1 {[%emt 0:00:30]} Bd4 {[%emt 0:00:30]} 16. Nd1 {[%emt 0:00:30]} Rhe8 {[%emt 0:00:30]} 17. Bxd4 {[%emt 0:00:30]} Rxd4 {[%emt 0:00:30]} 18. Ne3 {[%emt 0:00:30]} Be6 {[%emt 0:00:30]} 19. b3 {[%emt 0:00:30]} Red8 {[%emt 0:00:30]} 20. Rd1 {[%emt 0:00:30]} a5 {[%emt 0:00:30]} 21. a4 {[%emt 0:00:30]} Kc7 {[%emt 0:00:30]} 22. Rxd4 {[%emt 0:00:30]} Rxd4 {[%emt 0:00:30]} 23. Bd1 {[%emt 0:00:30]} Nd7 {[%emt 0:00:30]} 24. Bc2 {[%emt 0:00:30]} g6 {[%emt 0:00:30]} 25. Ke2 {[%emt 0:00:30]} Kb6 {[%emt 0:00:30]} 26. Rd1 {[%emt 0:00:30]} Rxd1 {[%emt 0:00:30]} 27. Bxd1 {[%emt 0:00:30]} Kc5 {[%emt 0:00:30]} 28. Kd3 {[%emt 0:00:30]} Kb4 {[%emt 0:00:30]} 29. Kd4 {[%emt 0:00:30]} b6 {[%emt 0:00:30]} 30. Nf1 {[%emt 0:00:30]} Nc5 {[%emt 0:00:30]} 31. Nd2 {[%emt 0:00:30]} f6 {[%emt 0:00:30]} 32. g4 {[%emt 0:00:30]} g5 {[%emt 0:00:30]} 33. f3 {[%emt 0:00:30]} Bf7 {[%emt 0:00:30]} 34. Bc2 {[%emt 0:00:30]} h6 {[%emt 0:00:30]} 35. Ne4 {[%emt 0:00:30]} Nxb3+ {[%emt 0:00:30]} 36. Bxb3 {[%emt 0:00:30]} c5+ {[%emt 0:00:30]} 37. Ke3 {[%emt 0:00:30]} Kxb3 {[%emt 0:00:30]} 38. Nxf6 {[%emt 0:00:30]} Kxa4 {[%emt 0:00:30]} 39. Nd7 {[%emt 0:00:30]} Kb3 {[%emt 0:00:30]} 40. Nxb6 {[%emt 0:00:30]} a4 {[%emt 0:00:30]} 41. Nd7 {[%emt 0:00:30]} a3 {[%emt 0:00:30]} 42. Nxc5+ {[%emt 0:00:30]} Kxc4 {[%emt 0:00:30]} 0-1

[Event "Fall IM Norm Invitational 2020"]
[Site "Charlotte"]
[Date "2020.10.03"]
[Round "5.1"]
[White "Adamson, Robby"]
[Black "Stearman, Josiah"]
[Result "0-1"]
[ECO "C55"]
[WhiteElo "2235"]
[BlackElo "2354"]
[Annotator "ChessBase"]
[PlyCount "124"]
[EventDate "2020.09.30"]
[EventType "tourn"]
[EventCountry "USA"]
[SourceTitle "playchess.com"]
[Source "ChessBase"]
[SourceQuality "1"]
[TimeControl "5400+30"]

1. e4 {[%emt 1:30:30]} e5 {[%emt 1:30:30]} 2. Nf3 {[%emt 0:00:30]} Nc6 {[%emt 0:00:30]} 3. Bc4 {[%emt 0:00:30]} Nf6 {[%emt 0:00:30]} 4. d3 {[%emt 0:00:30]} h6 {[%emt 0:00:30]} 5. Nc3 {[%emt 0:00:30]} d6 {[%emt 0:00:30]} 6. a3 {[%emt 0:00:30]} g5 {[%emt 0:00:30]} 7. h4 {[%emt 0:00:30]} g4 {[%emt 0:00:30]} 8. Nh2 {[%emt 0:00:30]} Bg7 {[%emt 0:00:30]} 9. Be3 {[%emt 0:00:30]} h5 {[%emt 0:00:30]} 10. Qd2 {[%emt 0:00:30]} Be6 {[%emt 0:00:30]} 11. Bg5 {[%emt 0:00:30]} Qd7 {[%emt 0:00:30]} 12. Nf1 {[%emt 0:00:30]} Nd4 {[%emt 0:00:30]} 13. Ng3 {[%emt 0:00:30]} c6 {[%emt 0:00:30]} 14. Nge2 {[%emt 0:00:30]} Nxe2 {[%emt 0:00:30]} 15. Qxe2 {[%emt 0:00:30]} O-O-O {[%emt 0:00:30]} 16. O-O-O {[%emt 0:00:30]} Rdf8 {[%emt 0:00:30]} 17. Bxe6 {[%emt 0:00:30]} fxe6 {[%emt 0:00:30]} 18. Rdf1 {[%emt 0:00:30]} Bh6 {[%emt 0:00:30]} 19. Bxh6 {[%emt 0:00:30]} Rxh6 {[%emt 0:00:30]} 20. Qe3 Qg7 {[%emt 0:00:30]} 21. Qxa7 {[%emt 0:01:00]} Nd7 {[%emt 0:00:30]} 22. a4 {[%emt 0:00:30]} Rhf6 {[%emt 0:00:30]} 23. Qe3 {[%emt 0:00:30]} Kc7 {[%emt 0:00:30]} 24. Nd1 {[%emt 0:00:30]} d5 {[%emt 0:00:30]} 25. Qg5 {[%emt 0:00:30]} Rg6 {[%emt 0:00:30]} 26. Qd2 {[%emt 0:00:30]} Ra8 {[%emt 0:00:30]} 27. Qb4 {[%emt 0:00:30]} Rf6 {[%emt 0:00:30]} 28. Re1 {[%emt 0:00:30]} d4 {[%emt 0:00:30]} 29. Re2 {[%emt 0:00:30]} c5 {[%emt 0:00:30]} 30. Qb3 {[%emt 0:00:30]} Ra5 {[%emt 0:00:30]} 31. c3 {[%emt 0:00:30]} Nb6 {[%emt 0:00:30]} 32. cxd4 {[%emt 0:00:30]} exd4 {[%emt 0:00:30]} 33. e5 {[%emt 0:00:30]} Qh6+ {[%emt 0:00:30]} 34. Kb1 {[%emt 0:00:30]} Rf8 {[%emt 0:00:30]} 35. Rc2 {[%emt 0:00:30]} Rfa8 {[%emt 0:00:30]} 36. Qb4 {[%emt 0:00:30]} Nd7 {[%emt 0:00:30]} 37. b3 {[%emt 0:00:30]} Kd8 {[%emt 0:00:30]} 38. Qd2 {[%emt 0:00:30]} Qxd2 {[%emt 0:00:30]} 39. Rxd2 {[%emt 0:00:30]} b5 {[%emt 0:00:30]} 40. Nb2 {[%emt 0:00:30]} Nb6 {[%emt 0:00:30]} 41. Kc2 {[%emt 0:00:30]} Ke7 {[%emt 0:00:30]} 42. f3 {[%emt 0:00:30]} g3 {[%emt 0:00:30]} 43. Rh3 {[%emt 0:00:30]} bxa4 {[%emt 0:00:30]} 44. bxa4 {[%emt 0:00:30]} Rg8 {[%emt 0:00:30]} 45. Rh1 {[%emt 0:00:30]} Nd5 {[%emt 0:00:30]} 46. Ra1 {[%emt 0:00:30]} Ne3+ {[%emt 0:00:30]} 47. Kc1 Rb8 {[%emt 0:00:30]} 48. Ra3 {[%emt 0:01:00]} Rb4 {[%emt 0:00:30]} 49. Re2 {[%emt 0:00:30]} Kf7 {[%emt 0:00:30]} 50. Nd1 {[%emt 0:00:30]} Nf5 {[%emt 0:00:30]} 51. Re4 {[%emt 0:00:30]} Raxa4 {[%emt 0:00:30]} 52. Rxa4 {[%emt 0:00:30]} Rxa4 {[%emt 0:00:30]} 53. Kb2 {[%emt 0:00:30]} Ke7 {[%emt 0:00:30]} 54. Rf4 {[%emt 0:00:30]} Kd7 {[%emt 0:00:30]} 55. Re4 {[%emt 0:00:30]} Kc6 {[%emt 0:00:30]} 56. Re1 {[%emt 0:00:30]} Nxh4 {[%emt 0:00:30]} 57. Rh1 Nxg2 {[%emt 0:00:30]} 58. Rxh5 {[%emt 0:01:00]} Ne1 {[%emt 0:00:30]} 59. Rg5 {[%emt 0:00:30]} Nxd3+ {[%emt 0:00:30]} 60. Kb1 {[%emt 0:00:30]} Rb4+ {[%emt 0:00:30]} 61. Ka2 {[%emt 0:00:30]} Nf2 {[%emt 0:00:30]} 62. Nb2 {[%emt 0:00:30]} d3 {[%emt 0:00:30]} 0-1

[Event "Fall IM Norm Invitational 2020"]
[Site "Charlotte"]
[Date "2020.10.03"]
[Round "5.2"]
[White "Francisco, Richard"]
[Black "Martin Del Campo C., Roberto"]
[Result "0-1"]
[ECO "A26"]
[WhiteElo "2303"]
[BlackElo "2311"]
[Annotator "ChessBase"]
[PlyCount "78"]
[EventDate "2020.09.30"]
[EventType "tourn"]
[EventCountry "USA"]
[SourceTitle "playchess.com"]
[Source "ChessBase"]
[SourceQuality "1"]
[TimeControl "5400+30"]

1. c4 {[%emt 1:30:30]} g6 {[%emt 1:30:30]} 2. g3 {[%emt 0:00:30]} Bg7 {[%emt 0:00:30]} 3. Bg2 {[%emt 0:00:30]} d6 {[%emt 0:00:30]} 4. Nc3 {[%emt 0:00:30]} e5 {[%emt 0:00:30]} 5. d3 {[%emt 0:00:30]} Nc6 {[%emt 0:00:30]} 6. e4 {[%emt 0:00:30]} Nd4 {[%emt 0:00:30]} 7. Be3 {[%emt 0:00:30]} Ne7 {[%emt 0:00:30]} 8. h4 {[%emt 0:00:30]} h5 {[%emt 0:00:30]} 9. Qd2 {[%emt 0:00:30]} c5 {[%emt 0:00:30]} 10. Nd5 {[%emt 0:00:30]} Nxd5 {[%emt 0:00:30]} 11. cxd5 {[%emt 0:00:30]} O-O {[%emt 0:00:30]} 12. Nf3 {[%emt 0:00:30]} Bd7 {[%emt 0:00:30]} 13. O-O {[%emt 0:00:30]} Rc8 {[%emt 0:00:30]} 14. Nh2 {[%emt 0:00:30]} Qb6 {[%emt 0:00:30]} 15. f4 {[%emt 0:00:30]} exf4 {[%emt 0:00:30]} 16. gxf4 {[%emt 0:00:30]} f5 {[%emt 0:00:30]} 17. Rab1 {[%emt 0:00:30]} Qa6 {[%emt 0:00:30]} 18. b3 {[%emt 0:00:30]} Rfe8 {[%emt 0:00:30]} 19. Kh1 {[%emt 0:00:30]} Re7 {[%emt 0:00:30]} 20. Rg1 {[%emt 0:00:30]} Qb5 {[%emt 0:00:30]} 21. Bf1 {[%emt 0:00:30]} Be8 {[%emt 0:00:30]} 22. Rg3 {[%emt 0:00:30]} Bf7 {[%emt 0:00:30]} 23. Qg2 {[%emt 0:00:30]} Qd7 {[%emt 0:00:30]} 24. Nf3 {[%emt 0:00:30]} Nxf3 {[%emt 0:00:30]} 25. Qxf3 {[%emt 0:00:30]} Rce8 {[%emt 0:00:30]} 26. Bh3 {[%emt 0:00:30]} Qb5 {[%emt 0:00:30]} 27. Bf1 {[%emt 0:00:30]} Qa5 {[%emt 0:00:30]} 28. Qg2 {[%emt 0:00:30]} fxe4 {[%emt 0:00:30]} 29. Rxg6 {[%emt 0:00:30]} Bxg6 {[%emt 0:00:30]} 30. Qxg6 {[%emt 0:00:30]} Qxa2 {[%emt 0:00:30]} 31. Re1 {[%emt 0:00:30]} Qxb3 {[%emt 0:00:30]} 32. f5 {[%emt 0:00:30]} Qc3 {[%emt 0:00:30]} 33. Rc1 {[%emt 0:00:30]} Qf6 {[%emt 0:00:30]} 34. Qxh5 {[%emt 0:00:30]} exd3 {[%emt 0:00:30]} 35. Bd2 {[%emt 0:00:30]} Re4 {[%emt 0:00:30]} 36. Bh3 {[%emt 0:00:30]} Qxh4 {[%emt 0:00:30]} 37. Qf3 {[%emt 0:00:30]} Re2 {[%emt 0:00:30]} 38. f6 {[%emt 0:00:30]} Qxf6 {[%emt 0:00:30]} 39. Qxd3 {[%emt 0:00:30]} Qf2 {[%emt 0:00:30]} 0-1

[Event "Fall IM Norm Invitational 2020"]
[Site "Charlotte"]
[Date "2020.10.03"]
[Round "5.3"]
[White "Krykun, Yuriy"]
[Black "Andrianov, Nikolay"]
[Result "1/2-1/2"]
[ECO "B31"]
[WhiteElo "2371"]
[BlackElo "1816"]
[Annotator "ChessBase"]
[PlyCount "81"]
[EventDate "2020.09.30"]
[EventType "tourn"]
[EventCountry "USA"]
[SourceTitle "playchess.com"]
[Source "ChessBase"]
[SourceQuality "1"]
[TimeControl "5400+30"]

1. e4 {[%emt 1:30:30]} c5 {[%emt 1:30:30]} 2. Nf3 {[%emt 0:00:30]} Nc6 {[%emt 0:00:30]} 3. Bb5 {[%emt 0:00:30]} g6 {[%emt 0:00:30]} 4. O-O {[%emt 0:00:30]} Bg7 {[%emt 0:00:30]} 5. c3 {[%emt 0:00:30]} Nf6 {[%emt 0:00:30]} 6. Re1 {[%emt 0:00:30]} O-O {[%emt 0:00:30]} 7. d4 {[%emt 0:00:30]} d5 {[%emt 0:00:30]} 8. e5 {[%emt 0:00:30]} Ne4 {[%emt 0:00:30]} 9. Be3 {[%emt 0:00:30]} cxd4 {[%emt 0:00:30]} 10. cxd4 {[%emt 0:00:30]} f6 {[%emt 0:00:30]} 11. Bxc6 {[%emt 0:00:30]} bxc6 {[%emt 0:00:30]} 12. Nbd2 {[%emt 0:00:30]} Rb8 {[%emt 0:00:30]} 13. b3 {[%emt 0:00:30]} Bg4 {[%emt 0:00:30]} 14. exf6 {[%emt 0:00:30]} Rxf6 {[%emt 0:00:30]} 15. Qc1 {[%emt 0:00:30]} Bxf3 {[%emt 0:00:30]} 16. Nxf3 {[%emt 0:00:30]} Rc8 {[%emt 0:00:30]} 17. b4 {[%emt 0:00:30]} Qd6 {[%emt 0:00:30]} 18. b5 {[%emt 0:00:30]} c5 {[%emt 0:00:30]} 19. dxc5 {[%emt 0:00:30]} Nxc5 {[%emt 0:00:30]} 20. Bd4 {[%emt 0:00:30]} Rff8 {[%emt 0:00:30]} 21. Bxg7 {[%emt 0:00:30]} Kxg7 {[%emt 0:00:30]} 22. Qb2+ {[%emt 0:00:30]} Kg8 {[%emt 0:00:30]} 23. Rad1 {[%emt 0:00:30]} e6 {[%emt 0:00:30]} 24. Ne5 {[%emt 0:00:30]} Na4 {[%emt 0:00:30]} 25. Qd4 {[%emt 0:00:30]} Nc3 {[%emt 0:00:30]} 26. Rd3 {[%emt 0:00:30]} Nxb5 {[%emt 0:00:30]} 27. Qg4 {[%emt 0:00:30]} Rc7 {[%emt 0:00:30]} 28. a4 {[%emt 0:00:30]} Na3 {[%emt 0:00:30]} 29. h4 {[%emt 0:00:30]} Nc2 {[%emt 0:00:30]} 30. Re2 {[%emt 0:00:30]} Rf5 {[%emt 0:00:30]} 31. Nf3 {[%emt 0:00:30]} Nb4 {[%emt 0:00:30]} 32. Rd1 {[%emt 0:00:30]} e5 {[%emt 0:00:30]} 33. Nxe5 {[%emt 0:00:30]} Rxe5 {[%emt 0:00:30]} 34. Rxe5 {[%emt 0:00:30]} Qxe5 {[%emt 0:00:30]} 35. Qxb4 {[%emt 0:00:30]} Rc4 {[%emt 0:00:30]} 36. Qb7 {[%emt 0:00:30]} Rxh4 {[%emt 0:00:30]} 37. Qa8+ {[%emt 0:00:30]} Kg7 {[%emt 0:00:30]} 38. Qxa7+ {[%emt 0:00:30]} Kh6 {[%emt 0:00:30]} 39. Qe3+ {[%emt 0:00:30]} Qxe3 {[%emt 0:00:30]} 40. fxe3 {[%emt 0:00:30]} Rxa4 {[%emt 0:00:30]} 41. Rxd5 {[%emt 0:00:30]} 1/2-1/2